[Event "Early-Titled-Tuesday-Blitz-April-16-2024"]
[Site "Chess.com"]
[Date "2024.04.16"]
[Round "1"]
[White "MITerryble"]
[Black "Tugrik1969"]
[Result "1-0"]
[WhiteElo "3070"]
[BlackElo "2531"]
[TimeControl "180+1"]
[EndTime "8:07:14 PDT"]
[Termination "MITerryble won on time"]

1. e4 {[%clk 0:02:57.3]} 1... c5 {[%clk 0:02:59.6]} 2. Nf3 {[%clk 0:02:56.1]}
2... d6 {[%clk 0:03:00.1]} 3. Bb5+ {[%clk 0:02:55.5]} 3... Bd7 {[%clk
0:02:56.8]} 4. Bxd7+ {[%clk 0:02:54.9]} 4... Nxd7 {[%clk 0:02:57]} 5. O-O {[%clk
0:02:55]} 5... Ngf6 {[%clk 0:02:57.1]} 6. Qe2 {[%clk 0:02:55.5]} 6... e6 {[%clk
0:02:54.9]} 7. c3 {[%clk 0:02:54.2]} 7... Be7 {[%clk 0:02:46.7]} 8. d4 {[%clk
0:02:54.2]} 8... O-O {[%clk 0:02:46.8]} 9. e5 {[%clk 0:02:53.5]} 9... Nd5 {[%clk
0:02:45.4]} 10. c4 {[%clk 0:02:53.7]} 10... Nc7 {[%clk 0:02:42.4]} 11. exd6
{[%clk 0:02:49.7]} 11... Bxd6 {[%clk 0:02:40.6]} 12. Rd1 {[%clk 0:02:50.6]}
12... Qc8 {[%clk 0:02:07]} 13. Nc3 {[%clk 0:02:45.1]} 13... cxd4 {[%clk
0:01:51.1]} 14. Rxd4 {[%clk 0:02:46]} 14... Be7 {[%clk 0:01:45.5]} 15. Bg5
{[%clk 0:02:31.2]} 15... f6 {[%clk 0:01:23.7]} 16. Rad1 {[%clk 0:02:30.3]} 16...
Nc5 {[%clk 0:01:14.4]} 17. Be3 {[%clk 0:02:22.4]} 17... e5 {[%clk 0:01:13.8]}
18. R4d2 {[%clk 0:02:22.4]} 18... N5e6 {[%clk 0:01:12.5]} 19. Nd5 {[%clk
0:02:02.5]} 19... Re8 {[%clk 0:00:56.9]} 20. Nh4 {[%clk 0:01:51.2]} 20... Nxd5
{[%clk 0:00:45.2]} 21. cxd5 {[%clk 0:01:51.2]} 21... Nf4 {[%clk 0:00:45.1]} 22.
Bxf4 {[%clk 0:01:37]} 22... exf4 {[%clk 0:00:46]} 23. Qd3 {[%clk 0:01:07.2]}
23... Bd6 {[%clk 0:00:36.8]} 24. Nf5 {[%clk 0:01:06.4]} 24... Qd7 {[%clk
0:00:35.1]} 25. Nxd6 {[%clk 0:00:33.2]} 25... Qxd6 {[%clk 0:00:34.7]} 26. Qb5
{[%clk 0:00:24.1]} 26... b6 {[%clk 0:00:31.1]} 27. Rc2 {[%clk 0:00:22.3]} 27...
Rac8 {[%clk 0:00:17]} 28. h4 {[%clk 0:00:20]} 28... Red8 {[%clk 0:00:13.1]} 29.
Re2 {[%clk 0:00:15.7]} 29... h5 {[%clk 0:00:09.5]} 30. Qb3 {[%clk 0:00:12.3]}
30... Re8 {[%clk 0:00:07.5]} 31. Re6 {[%clk 0:00:11.7]} 31... Kf7 {[%clk
0:00:05.7]} 32. Rxd6 {[%clk 0:00:11.4]} 1-0

[Event "Early-Titled-Tuesday-Blitz-April-16-2024"]
[Site "Chess.com"]
[Date "2024.04.16"]
[Round "1"]
[White "BigAl"]
[Black "Iball95"]
[Result "1-0"]
[WhiteElo "2518"]
[BlackElo "2888"]
[TimeControl "180+1"]
[EndTime "8:07:14 PDT"]
[Termination "BigAl won on time"]

1. Nf3 {[%clk 0:03:00.9]} 1... d5 {[%clk 0:02:59.7]} 2. g3 {[%clk 0:03:01.2]}
2... Nf6 {[%clk 0:03:00.2]} 3. Bg2 {[%clk 0:03:02.1]} 3... c5 {[%clk 0:03:00.9]}
4. O-O {[%clk 0:03:03]} 4... Nc6 {[%clk 0:03:01.6]} 5. d3 {[%clk 0:03:03.9]}
5... e6 {[%clk 0:03:01.8]} 6. Nbd2 {[%clk 0:03:03.8]} 6... g6 {[%clk 0:03:02.3]}
7. e4 {[%clk 0:03:03.9]} 7... Bg7 {[%clk 0:03:03.1]} 8. exd5 {[%clk 0:02:58.4]}
8... Nxd5 {[%clk 0:03:04]} 9. a4 {[%clk 0:02:57.2]} 9... O-O {[%clk 0:03:03.2]}
10. Nc4 {[%clk 0:02:57]} 10... b6 {[%clk 0:03:03.5]} 11. Re1 {[%clk 0:02:57.3]}
11... Bb7 {[%clk 0:03:02.4]} 12. h4 {[%clk 0:02:57.3]} 12... h6 {[%clk
0:02:55.2]} 13. c3 {[%clk 0:02:54.3]} 13... Rc8 {[%clk 0:02:53.9]} 14. Qe2
{[%clk 0:02:48.7]} 14... Qd7 {[%clk 0:02:49.5]} 15. Nfe5 {[%clk 0:02:41.5]}
15... Nxe5 {[%clk 0:02:49.3]} 16. Nxe5 {[%clk 0:02:42.4]} 16... Qc7 {[%clk
0:02:48.3]} 17. Ng4 {[%clk 0:02:42.4]} 17... h5 {[%clk 0:02:42.9]} 18. Ne5
{[%clk 0:02:38.6]} 18... Ne7 {[%clk 0:02:41]} 19. Bxb7 {[%clk 0:02:30.5]} 19...
Qxb7 {[%clk 0:02:41.9]} 20. Nc4 {[%clk 0:02:28.2]} 20... Rcd8 {[%clk 0:02:41]}
21. Bg5 {[%clk 0:02:26.1]} 21... Rd5 {[%clk 0:02:26]} 22. Bxe7 {[%clk
0:02:14.8]} 22... Qxe7 {[%clk 0:02:26.9]} 23. a5 {[%clk 0:02:15.4]} 23... b5
{[%clk 0:02:21.3]} 24. Ne3 {[%clk 0:02:15.6]} 24... Rd6 {[%clk 0:02:18.6]} 25.
Rad1 {[%clk 0:01:55.2]} 25... Rfd8 {[%clk 0:02:08]} 26. Rd2 {[%clk 0:01:42]}
26... a6 {[%clk 0:01:49]} 27. Red1 {[%clk 0:01:41.4]} 27... Bh6 {[%clk
0:01:49.4]} 28. d4 {[%clk 0:01:32.4]} 28... cxd4 {[%clk 0:01:49.5]} 29. Rxd4
{[%clk 0:01:31.8]} 29... Rxd4 {[%clk 0:01:49.4]} 30. cxd4 {[%clk 0:01:27.9]}
30... Qb4 {[%clk 0:01:43.7]} 31. d5 {[%clk 0:01:11.1]} 31... Bxe3 {[%clk
0:01:42.2]} 32. Qxe3 {[%clk 0:01:10.7]} 32... exd5 {[%clk 0:00:55.2]} 33. Rd4
{[%clk 0:01:09.5]} 33... Qxb2 {[%clk 0:00:47.2]} 34. g4 {[%clk 0:01:09.4]} 34...
hxg4 {[%clk 0:00:45.9]} 35. Rxg4 {[%clk 0:01:08.8]} 35... Qb1+ {[%clk
0:00:45.9]} 36. Kh2 {[%clk 0:01:04.5]} 36... Qf5 {[%clk 0:00:45.9]} 37. Rf4
{[%clk 0:01:04.7]} 37... Qe6 {[%clk 0:00:33.7]} 38. Qd4 {[%clk 0:01:03.9]} 38...
Qd6 {[%clk 0:00:31.2]} 39. Kg2 {[%clk 0:01:03.9]} 39... Rc8 {[%clk 0:00:23.5]}
40. Rf6 {[%clk 0:01:01.3]} 40... Qd7 {[%clk 0:00:21.5]} 41. Rxa6 {[%clk
0:01:00.5]} 41... b4 {[%clk 0:00:19.2]} 42. Rb6 {[%clk 0:00:58.7]} 42... Kh7
{[%clk 0:00:06.9]} 43. h5 {[%clk 0:00:56.9]} 43... gxh5 {[%clk 0:00:03.9]} 44.
Qd3+ {[%clk 0:00:52.9]} 44... Kh8 {[%clk 0:00:03.7]} 45. Rh6+ {[%clk 0:00:51.8]}
45... Kg8 {[%clk 0:00:03.2]} 46. Qh7+ {[%clk 0:00:51.6]} 46... Kf8 {[%clk
0:00:04.1]} 47. Qh8+ {[%clk 0:00:51.6]} 47... Ke7 {[%clk 0:00:04.4]} 48. Qf6+
{[%clk 0:00:52.3]} 1-0

[Event "Early-Titled-Tuesday-Blitz-April-16-2024"]
[Site "Chess.com"]
[Date "2024.04.16"]
[Round "1"]
[White "sonicdravise"]
[Black "KVAIDAN"]
[Result "0-1"]
[WhiteElo "2600"]
[BlackElo "2320"]
[TimeControl "180+1"]
[EndTime "8:07:18 PDT"]
[Termination "KVAIDAN won by resignation"]

1. Nf3 {[%clk 0:03:00.9]} 1... e6 {[%clk 0:02:58.3]} 2. c4 {[%clk 0:02:57.7]}
2... f5 {[%clk 0:02:57.9]} 3. d4 {[%clk 0:02:56.6]} 3... Nf6 {[%clk 0:02:58.4]}
4. g3 {[%clk 0:02:56.5]} 4... Be7 {[%clk 0:02:58.5]} 5. Bg2 {[%clk 0:02:56.9]}
5... O-O {[%clk 0:02:59.2]} 6. O-O {[%clk 0:02:57.6]} 6... d6 {[%clk 0:02:59.7]}
7. Nc3 {[%clk 0:02:57.2]} 7... a5 {[%clk 0:03:00.3]} 8. Qc2 {[%clk 0:02:52.8]}
8... Nc6 {[%clk 0:02:59.6]} 9. e4 {[%clk 0:02:49.4]} 9... Nb4 {[%clk 0:02:58.7]}
10. Qb1 {[%clk 0:02:47.7]} 10... fxe4 {[%clk 0:02:58.8]} 11. Nxe4 {[%clk
0:02:47.5]} 11... Nxe4 {[%clk 0:02:59.1]} 12. Qxe4 {[%clk 0:02:47.4]} 12... e5
{[%clk 0:02:59.7]} 13. dxe5 {[%clk 0:01:59]} 13... Bf5 {[%clk 0:02:58.3]} 14.
Qxb7 {[%clk 0:01:59.5]} 14... Rb8 {[%clk 0:02:58.6]} 15. Qa7 {[%clk 0:01:58.8]}
15... Be4 {[%clk 0:02:59]} 16. Qe3 {[%clk 0:01:44.2]} 16... Bxf3 {[%clk
0:02:52.3]} 17. Bxf3 {[%clk 0:01:44.2]} 17... Nc2 {[%clk 0:02:53]} 18. Bd5+
{[%clk 0:01:42.8]} 18... Kh8 {[%clk 0:02:52.8]} 19. Qc3 {[%clk 0:01:26.4]} 19...
Nxa1 {[%clk 0:02:52.3]} 20. b3 {[%clk 0:01:23.1]} 20... dxe5 {[%clk 0:02:35.8]}
21. Qxa1 {[%clk 0:01:22.7]} 21... Bf6 {[%clk 0:02:35]} 22. Ba3 {[%clk
0:01:18.1]} 22... Re8 {[%clk 0:02:18.7]} 23. Bf7 {[%clk 0:01:02.3]} 23... e4
{[%clk 0:02:18.5]} 24. Qb1 {[%clk 0:00:51.7]} 24... Re5 {[%clk 0:02:17.5]} 25.
Rd1 {[%clk 0:00:34.5]} 25... Qc8 {[%clk 0:02:10.5]} 26. Bb2 {[%clk 0:00:34.7]}
26... Re7 {[%clk 0:02:02.4]} 27. Bxf6 {[%clk 0:00:25.9]} 27... Rxf7 {[%clk
0:02:01.3]} 28. Rd8+ {[%clk 0:00:24.7]} 28... Qxd8 {[%clk 0:01:58.7]} 29. Bxd8
{[%clk 0:00:25.6]} 29... Rxd8 {[%clk 0:01:59.2]} 30. Qxe4 {[%clk 0:00:26.4]}
30... h6 {[%clk 0:01:55.2]} 31. Qe3 {[%clk 0:00:21.5]} 31... Rf6 {[%clk
0:01:45.9]} 32. a3 {[%clk 0:00:15.9]} 32... Rd1+ {[%clk 0:01:34.8]} 33. Kg2
{[%clk 0:00:16]} 33... Ra1 {[%clk 0:01:31.8]} 34. b4 {[%clk 0:00:13.2]} 34... a4
{[%clk 0:01:32.2]} 35. Qe8+ {[%clk 0:00:12.6]} 35... Kh7 {[%clk 0:01:32.3]} 36.
Qxa4 {[%clk 0:00:11.6]} 36... Ra2 {[%clk 0:01:29.3]} 37. Qa7 {[%clk 0:00:12.2]}
37... h5 {[%clk 0:01:26.5]} 38. h4 {[%clk 0:00:11.4]} 38... Rf5 {[%clk
0:01:20.7]} 39. a4 {[%clk 0:00:11.4]} 39... c5 {[%clk 0:01:20.4]} 40. g4 {[%clk
0:00:06.8]} 40... Raxf2+ {[%clk 0:01:15.3]} 41. Kg1 {[%clk 0:00:07.2]} 41...
hxg4 {[%clk 0:01:14.7]} 42. Qc7 {[%clk 0:00:03.6]} 42... R2f4 {[%clk 0:01:09]}
43. bxc5 {[%clk 0:00:02.8]} 43... Rxc4 {[%clk 0:01:08.3]} 44. c6 {[%clk
0:00:02.6]} 44... Rf6 {[%clk 0:01:07.6]} 45. a5 {[%clk 0:00:02.1]} 45... Rfxc6
{[%clk 0:01:06.4]} 46. Qd7 {[%clk 0:00:02.6]} 46... R6c5 {[%clk 0:01:04.8]} 47.
a6 {[%clk 0:00:02.7]} 47... g3 {[%clk 0:01:05.2]} 48. Qd3+ {[%clk 0:00:02.2]}
48... Kh6 {[%clk 0:01:03.6]} 49. Qxg3 {[%clk 0:00:03.1]} 49... Rc1+ {[%clk
0:01:01.9]} 50. Kh2 {[%clk 0:00:02.8]} 50... R5c2+ {[%clk 0:01:02]} 51. Kh3
{[%clk 0:00:03.3]} 51... Rc3 {[%clk 0:01:02.5]} 52. a7 {[%clk 0:00:03.4]} 52...
Rxg3+ {[%clk 0:01:02.2]} 53. Kxg3 {[%clk 0:00:04.3]} 53... Ra1 {[%clk
0:01:02.4]} 0-1

[Event "Early-Titled-Tuesday-Blitz-April-16-2024"]
[Site "Chess.com"]
[Date "2024.04.16"]
[Round "1"]
[White "arenal72"]
[Black "Fjal"]
[Result "1-0"]
[WhiteElo "2611"]
[BlackElo "2293"]
[TimeControl "180+1"]
[EndTime "8:07:18 PDT"]
[Termination "arenal72 won by resignation"]

1. Nf3 {[%clk 0:02:58.3]} 1... Nf6 {[%clk 0:02:55.6]} 2. g3 {[%clk 0:02:57.1]}
2... g6 {[%clk 0:02:56.5]} 3. Bg2 {[%clk 0:02:56.3]} 3... Bg7 {[%clk 0:02:57.2]}
4. O-O {[%clk 0:02:56.7]} 4... O-O {[%clk 0:02:57.9]} 5. d3 {[%clk 0:02:56.3]}
5... d6 {[%clk 0:02:58.1]} 6. e4 {[%clk 0:02:51.6]} 6... e5 {[%clk 0:02:58.5]}
7. h3 {[%clk 0:02:46]} 7... Nc6 {[%clk 0:02:57.8]} 8. Be3 {[%clk 0:02:41.2]}
8... a5 {[%clk 0:02:56.8]} 9. a4 {[%clk 0:02:38.4]} 9... Be6 {[%clk 0:02:57.3]}
10. c4 {[%clk 0:02:28.7]} 10... Qd7 {[%clk 0:02:56.7]} 11. Ng5 {[%clk
0:02:26.7]} 11... Nb4 {[%clk 0:02:55.6]} 12. Nc3 {[%clk 0:02:20.4]} 12... Qe7
{[%clk 0:02:49.7]} 13. Nd5 {[%clk 0:02:14.1]} 13... Bxd5 {[%clk 0:02:45.5]} 14.
cxd5 {[%clk 0:02:12]} 14... Nd7 {[%clk 0:02:44.2]} 15. Rc1 {[%clk 0:02:04.2]}
15... Nc5 {[%clk 0:02:35.9]} 16. Bxc5 {[%clk 0:02:01.9]} 16... dxc5 {[%clk
0:02:36.8]} 17. Nf3 {[%clk 0:01:54.9]} 17... b6 {[%clk 0:02:29.3]} 18. Qe2
{[%clk 0:01:50.7]} 18... Rad8 {[%clk 0:02:27.2]} 19. Nd2 {[%clk 0:01:47.1]}
19... c6 {[%clk 0:02:25.4]} 20. dxc6 {[%clk 0:01:33.7]} 20... Rxd3 {[%clk
0:02:01.2]} 21. Nc4 {[%clk 0:01:28.3]} 21... Qc7 {[%clk 0:01:58.8]} 22. Ne3
{[%clk 0:01:18.5]} 22... Qxc6 {[%clk 0:01:56.8]} 23. Nd5 {[%clk 0:01:12.7]}
23... Qd6 {[%clk 0:01:33.8]} 24. Rfd1 {[%clk 0:00:46.9]} 24... Rd4 {[%clk
0:01:31.6]} 25. Nc3 {[%clk 0:00:40.3]} 25... Qc6 {[%clk 0:01:21.9]} 26. Nb5
{[%clk 0:00:37.9]} 26... Rdd8 {[%clk 0:01:10.1]} 27. Qc4 {[%clk 0:00:34.2]}
27... Bh6 {[%clk 0:01:08.4]} 28. Rb1 {[%clk 0:00:33]} 28... Rd7 {[%clk
0:01:03.3]} 29. Rxd7 {[%clk 0:00:28.7]} 29... Qxd7 {[%clk 0:01:04.2]} 30. Bf3
{[%clk 0:00:27.3]} 30... Rd8 {[%clk 0:01:02.7]} 31. Rd1 {[%clk 0:00:26.5]} 31...
Qe7 {[%clk 0:00:53.3]} 32. Rxd8+ {[%clk 0:00:22.4]} 32... Qxd8 {[%clk
0:00:54.2]} 33. Kg2 {[%clk 0:00:22.5]} 33... Qd2 {[%clk 0:00:52.1]} 34. b3
{[%clk 0:00:19.3]} 34... Be3 {[%clk 0:00:47]} 35. Be2 {[%clk 0:00:18.2]} 35...
Bd4 {[%clk 0:00:45.2]} 36. Nd6 {[%clk 0:00:17.8]} 36... Qh6 {[%clk 0:00:18.6]}
37. Qxf7+ {[%clk 0:00:15.3]} 37... Kh8 {[%clk 0:00:18.7]} 38. Qe8+ {[%clk
0:00:14.9]} 38... Kg7 {[%clk 0:00:19.3]} 39. Qe7+ {[%clk 0:00:15]} 39... Kg8
{[%clk 0:00:18.7]} 40. Bc4+ {[%clk 0:00:15.1]} 40... Kh8 {[%clk 0:00:16.9]} 41.
Nf7+ {[%clk 0:00:10.9]} 41... Kg7 {[%clk 0:00:16.2]} 42. Nxh6+ {[%clk
0:00:11.2]} 42... Kxh6 {[%clk 0:00:17.1]} 43. Qf8+ {[%clk 0:00:11.4]} 1-0

[Event "Early-Titled-Tuesday-Blitz-April-16-2024"]
[Site "Chess.com"]
[Date "2024.04.16"]
[Round "1"]
[White "Masterisback04"]
[Black "SARGISMV"]
[Result "0-1"]
[WhiteElo "2013"]
[BlackElo "2558"]
[TimeControl "180+1"]
[EndTime "8:07:18 PDT"]
[Termination "SARGISMV won on time"]

1. e4 {[%clk 0:02:59.5]} 1... e6 {[%clk 0:02:59.5]} 2. d4 {[%clk 0:02:58]} 2...
d5 {[%clk 0:02:57.4]} 3. Nd2 {[%clk 0:02:57.4]} 3... Nc6 {[%clk 0:02:57.2]} 4.
c3 {[%clk 0:02:52.9]} 4... e5 {[%clk 0:02:56.7]} 5. dxe5 {[%clk 0:02:40]} 5...
dxe4 {[%clk 0:02:55.5]} 6. Ngf3 {[%clk 0:02:40.5]} 6... exf3 {[%clk 0:02:55.1]}
7. Qxf3 {[%clk 0:02:15.6]} 7... Nxe5 {[%clk 0:02:53.5]} 8. Qe4 {[%clk
0:02:13.8]} 8... Qe7 {[%clk 0:02:49.3]} 9. Be2 {[%clk 0:02:03.7]} 9... Nf6
{[%clk 0:02:48.3]} 10. Qe3 {[%clk 0:01:59]} 10... Neg4 {[%clk 0:02:46.6]} 11.
Qxe7+ {[%clk 0:01:55.8]} 11... Bxe7 {[%clk 0:02:45.2]} 12. Nc4 {[%clk
0:01:52.9]} 12... Be6 {[%clk 0:02:38.9]} 13. Na5 {[%clk 0:01:49.5]} 13... O-O-O
{[%clk 0:02:35.6]} 14. h3 {[%clk 0:01:49.2]} 14... Ne5 {[%clk 0:02:34.9]} 15.
Be3 {[%clk 0:01:46.7]} 15... Nd3+ {[%clk 0:02:22.7]} 16. Kf1 {[%clk 0:01:46.7]}
16... Bc5 {[%clk 0:02:17.2]} 17. Rd1 {[%clk 0:01:28.9]} 17... Bxe3 {[%clk
0:02:14.5]} 18. fxe3 {[%clk 0:01:18.4]} 18... Nxb2 {[%clk 0:02:10]} 19. Rb1
{[%clk 0:01:16.3]} 19... Rd2 {[%clk 0:02:07.4]} 20. Ke1 {[%clk 0:00:52]} 20...
Rhd8 {[%clk 0:02:05.8]} 21. Rf1 {[%clk 0:00:52.1]} 21... Bxa2 {[%clk 0:02:01.8]}
22. Ra1 {[%clk 0:00:48.1]} 22... Be6 {[%clk 0:02:01.2]} 23. Rf4 {[%clk
0:00:47.3]} 23... Nd5 {[%clk 0:01:58.3]} 24. Rd4 {[%clk 0:00:27.7]} 24... Rxd4
{[%clk 0:01:54.2]} 25. cxd4 {[%clk 0:00:28.6]} 25... Nxe3 {[%clk 0:01:53.5]} 26.
Kd2 {[%clk 0:00:25.5]} 26... Nec4+ {[%clk 0:01:49.8]} 27. Kc3 {[%clk 0:00:24.1]}
27... Nb6 {[%clk 0:01:37.7]} 28. Kxb2 {[%clk 0:00:23.3]} 28... Rxd4 {[%clk
0:01:36.5]} 29. Kc3 {[%clk 0:00:23.2]} 29... Ra4 {[%clk 0:01:34.6]} 30. Rxa4
{[%clk 0:00:22.3]} 30... Nxa4+ {[%clk 0:01:35.3]} 31. Kb4 {[%clk 0:00:23.2]}
31... Nb6 {[%clk 0:01:35.4]} 32. Bf3 {[%clk 0:00:21.2]} 32... Bd5 {[%clk
0:01:35.3]} 33. Bg4+ {[%clk 0:00:21.3]} 33... Kd8 {[%clk 0:01:33.2]} 34. g3
{[%clk 0:00:21.5]} 34... Ke7 {[%clk 0:01:31.1]} 35. Kc5 {[%clk 0:00:21.6]} 35...
Be4 {[%clk 0:01:30.1]} 36. Nb3 {[%clk 0:00:20.8]} 36... Nd7+ {[%clk 0:01:29.3]}
37. Kd4 {[%clk 0:00:20.7]} 37... Bg2 {[%clk 0:01:28.3]} 38. h4 {[%clk
0:00:20.1]} 38... c5+ {[%clk 0:01:25.2]} 39. Kc3 {[%clk 0:00:19.7]} 39... b5
{[%clk 0:01:24.5]} 40. Be2 {[%clk 0:00:20.2]} 40... c4 {[%clk 0:01:24.1]} 41.
Nd4 {[%clk 0:00:20]} 41... a6 {[%clk 0:01:22]} 42. Kb4 {[%clk 0:00:17.1]} 42...
g6 {[%clk 0:01:21]} 43. Ka5 {[%clk 0:00:15.6]} 43... Bb7 {[%clk 0:01:19.4]} 44.
Bg4 {[%clk 0:00:10.7]} 44... f5 {[%clk 0:01:14.9]} 45. Bd1 {[%clk 0:00:09.9]}
45... Kd6 {[%clk 0:01:14.8]} 46. h5 {[%clk 0:00:08.8]} 46... Kd5 {[%clk
0:01:13.3]} 47. hxg6 {[%clk 0:00:07]} 47... hxg6 {[%clk 0:01:12.6]} 48. Ne2
{[%clk 0:00:06.7]} 48... Kc5 {[%clk 0:01:12.1]} 49. Nf4 {[%clk 0:00:03]} 49...
Ne5 {[%clk 0:01:10.3]} 50. Ne6+ {[%clk 0:00:02.8]} 50... Kd6 {[%clk 0:01:10.2]}
51. Nf8 {[%clk 0:00:02.4]} 51... c3 {[%clk 0:01:09.7]} 52. Kb6 {[%clk
0:00:02.1]} 52... Be4 {[%clk 0:01:09]} 53. Kxa6 {[%clk 0:00:01.6]} 53... b4
{[%clk 0:01:09.1]} 54. Ka5 {[%clk 0:00:01.4]} 54... Ke7 {[%clk 0:01:07.1]} 0-1

[Event "Early-Titled-Tuesday-Blitz-April-16-2024"]
[Site "Chess.com"]
[Date "2024.04.16"]
[Round "1"]
[White "Zohid6"]
[Black "PositionalPanther"]
[Result "1-0"]
[WhiteElo "2957"]
[BlackElo "2518"]
[TimeControl "180+1"]
[EndTime "8:07:19 PDT"]
[Termination "Zohid6 won on time"]

1. e4 {[%clk 0:03:00.9]} 1... e6 {[%clk 0:02:59.7]} 2. d4 {[%clk 0:03:00.3]}
2... d5 {[%clk 0:03:00.1]} 3. Nc3 {[%clk 0:03:00.6]} 3... Nf6 {[%clk 0:03:00.4]}
4. e5 {[%clk 0:02:56.6]} 4... Nfd7 {[%clk 0:02:59.9]} 5. Nce2 {[%clk 0:02:55.9]}
5... c5 {[%clk 0:02:59.5]} 6. c3 {[%clk 0:02:55]} 6... Nc6 {[%clk 0:02:59.7]} 7.
Nf3 {[%clk 0:02:54.7]} 7... Be7 {[%clk 0:02:59.4]} 8. a3 {[%clk 0:02:54.4]} 8...
O-O {[%clk 0:02:59]} 9. Nf4 {[%clk 0:02:54.6]} 9... Qb6 {[%clk 0:02:49]} 10. Bd3
{[%clk 0:02:53.9]} 10... f6 {[%clk 0:02:47.2]} 11. Nxe6 {[%clk 0:02:45.7]} 11...
Re8 {[%clk 0:02:41.3]} 12. Nfg5 {[%clk 0:02:35.2]} 12... h6 {[%clk 0:01:34]} 13.
Qh5 {[%clk 0:02:28]} 13... fxg5 {[%clk 0:01:20.2]} 14. Qxe8+ {[%clk 0:02:22.7]}
14... Nf8 {[%clk 0:01:20.4]} 15. Nxf8 {[%clk 0:02:19.3]} 15... Bxf8 {[%clk
0:01:21.3]} 16. Bg6 {[%clk 0:02:02.4]} 16... Qc7 {[%clk 0:00:46.7]} 17. h4
{[%clk 0:01:46.9]} 17... g4 {[%clk 0:00:31.3]} 18. Be3 {[%clk 0:01:31.4]} 18...
c4 {[%clk 0:00:22]} 19. O-O {[%clk 0:01:30]} 19... Rb8 {[%clk 0:00:21.1]} 20. f3
{[%clk 0:01:24.3]} 20... g3 {[%clk 0:00:16.6]} 21. e6 {[%clk 0:01:21.7]} 21...
Nd8 {[%clk 0:00:09.6]} 22. Bf7+ {[%clk 0:01:16.5]} 22... Nxf7 {[%clk 0:00:09.3]}
23. Qxf7+ {[%clk 0:01:16.4]} 23... Qxf7 {[%clk 0:00:09.7]} 24. exf7+ {[%clk
0:01:17.3]} 24... Kxf7 {[%clk 0:00:10.6]} 25. Bf4 {[%clk 0:01:17.9]} 25... Ra8
{[%clk 0:00:11.3]} 26. Bxg3 {[%clk 0:01:18.4]} 26... Bf5 {[%clk 0:00:11.9]} 27.
Rfe1 {[%clk 0:01:17.6]} 27... Be7 {[%clk 0:00:07.3]} 28. Re5 {[%clk 0:01:16.1]}
28... Bd3 {[%clk 0:00:06.7]} 29. Kf2 {[%clk 0:01:12.9]} 29... Rd8 {[%clk
0:00:06]} 30. Rae1 {[%clk 0:01:12.1]} 30... Bf6 {[%clk 0:00:06.3]} 31. Re6
{[%clk 0:01:12.2]} 31... Bc2 {[%clk 0:00:05]} 32. h5 {[%clk 0:01:11.5]} 32...
Bf5 {[%clk 0:00:05.2]} 33. Rd6 {[%clk 0:01:11.4]} 33... Rxd6 {[%clk 0:00:04.6]}
34. Bxd6 {[%clk 0:01:12.3]} 34... b5 {[%clk 0:00:05]} 35. g4 {[%clk 0:01:12]}
35... Bd7 {[%clk 0:00:04.9]} 36. Kg2 {[%clk 0:01:09.2]} 36... a5 {[%clk
0:00:05.1]} 37. Bc7 {[%clk 0:01:08.8]} 37... a4 {[%clk 0:00:05.5]} 38. Be5
{[%clk 0:01:09.2]} 38... Bd8 {[%clk 0:00:05.1]} 39. Kg3 {[%clk 0:01:08.2]} 39...
Bg5 {[%clk 0:00:05.3]} 40. f4 {[%clk 0:01:08.6]} 40... Bd8 {[%clk 0:00:05.9]}
41. f5 {[%clk 0:01:09.2]} 41... Bg5 {[%clk 0:00:05.9]} 42. Bf4 {[%clk 0:01:09]}
42... Bf6 {[%clk 0:00:06.2]} 43. Kf3 {[%clk 0:01:08.4]} 43... Bd8 {[%clk
0:00:06.2]} 44. Re5 {[%clk 0:01:08.7]} 44... Bc6 {[%clk 0:00:06.5]} 45. Re6
{[%clk 0:01:08.8]} 45... Bd7 {[%clk 0:00:06.9]} 46. Rd6 {[%clk 0:01:09]} 46...
Ke8 {[%clk 0:00:07.3]} 47. Ke3 {[%clk 0:01:08.7]} 47... Be7 {[%clk 0:00:07.4]}
48. Rxd5 {[%clk 0:01:08.9]} 48... Bc6 {[%clk 0:00:06.9]} 49. Re5 {[%clk
0:01:09.3]} 49... Kd7 {[%clk 0:00:06.5]} 50. Re6 {[%clk 0:01:07.5]} 50... Bd5
{[%clk 0:00:05.5]} 51. Rg6 {[%clk 0:01:06.1]} 51... Bf6 {[%clk 0:00:03.8]} 52.
Be5 {[%clk 0:01:05.8]} 52... Bg5+ {[%clk 0:00:04.4]} 53. Ke2 {[%clk 0:01:03.8]}
53... Be4 {[%clk 0:00:02]} 54. Rxg7+ {[%clk 0:01:03.9]} 54... Kc8 {[%clk
0:00:02.3]} 55. Rxg5 {[%clk 0:01:04.6]} 55... hxg5 {[%clk 0:00:02.4]} 56. h6
{[%clk 0:01:05.3]} 1-0

[Event "Early-Titled-Tuesday-Blitz-April-16-2024"]
[Site "Chess.com"]
[Date "2024.04.16"]
[Round "1"]
[White "koncheto"]
[Black "UnTucopalaTimba"]
[Result "1-0"]
[WhiteElo "2558"]
[BlackElo "1999"]
[TimeControl "180+1"]
[EndTime "8:07:20 PDT"]
[Termination "koncheto won by checkmate"]

1. e4 {[%clk 0:03:00.1]} 1... c6 {[%clk 0:02:59.2]} 2. d4 {[%clk 0:02:59.5]}
2... d5 {[%clk 0:02:59]} 3. Nc3 {[%clk 0:03:00.1]} 3... dxe4 {[%clk 0:02:58.4]}
4. Nxe4 {[%clk 0:03:01]} 4... Bf5 {[%clk 0:02:58.4]} 5. Ng3 {[%clk 0:03:00.1]}
5... Bg6 {[%clk 0:02:57.2]} 6. Nf3 {[%clk 0:02:59.4]} 6... Nd7 {[%clk
0:02:56.4]} 7. h4 {[%clk 0:02:59.2]} 7... h6 {[%clk 0:02:56.1]} 8. h5 {[%clk
0:02:59]} 8... Bh7 {[%clk 0:02:56.1]} 9. Bd3 {[%clk 0:02:59.2]} 9... Bxd3 {[%clk
0:02:55.5]} 10. Qxd3 {[%clk 0:03:00.1]} 10... e6 {[%clk 0:02:55]} 11. Bd2 {[%clk
0:02:59.5]} 11... Ngf6 {[%clk 0:02:53.7]} 12. O-O-O {[%clk 0:02:59.6]} 12... Be7
{[%clk 0:02:53.5]} 13. Qe2 {[%clk 0:02:56]} 13... O-O {[%clk 0:02:44.3]} 14. Kb1
{[%clk 0:02:52.4]} 14... Rc8 {[%clk 0:02:37.1]} 15. c4 {[%clk 0:02:43.8]} 15...
a6 {[%clk 0:02:18.5]} 16. Ne5 {[%clk 0:02:26.6]} 16... b5 {[%clk 0:02:08.2]} 17.
Rhe1 {[%clk 0:02:08.4]} 17... Nb6 {[%clk 0:01:36.2]} 18. Ba5 {[%clk 0:01:54.5]}
18... bxc4 {[%clk 0:01:14.8]} 19. Nxc4 {[%clk 0:01:34.4]} 19... Nfd5 {[%clk
0:01:14.5]} 20. Ne4 {[%clk 0:01:31.5]} 20... Rb8 {[%clk 0:01:07.7]} 21. Nc5
{[%clk 0:01:25.9]} 21... Qc8 {[%clk 0:01:00.9]} 22. Ka1 {[%clk 0:01:10.3]} 22...
Nxc4 {[%clk 0:00:52.4]} 23. Qxc4 {[%clk 0:01:05]} 23... Rb5 {[%clk 0:00:52.3]}
24. Bd2 {[%clk 0:00:42.6]} 24... Bxc5 {[%clk 0:00:49.1]} 25. dxc5 {[%clk
0:00:41.9]} 25... Qb7 {[%clk 0:00:46.4]} 26. b3 {[%clk 0:00:37.4]} 26... Qe7
{[%clk 0:00:44.4]} 27. Rc1 {[%clk 0:00:30.3]} 27... Qf6+ {[%clk 0:00:41]} 28.
Bc3 {[%clk 0:00:22.4]} 28... Nxc3 {[%clk 0:00:38.5]} 29. Rxc3 {[%clk 0:00:20.4]}
29... Qxf2 {[%clk 0:00:35.7]} 30. Re4 {[%clk 0:00:20.6]} 30... Rd8 {[%clk
0:00:24.9]} 31. Rc2 {[%clk 0:00:11.9]} 31... Rd1+ {[%clk 0:00:20.4]} 32. Kb2
{[%clk 0:00:11.9]} 32... Qg1 {[%clk 0:00:19.4]} 33. Rg4 {[%clk 0:00:07.4]} 33...
Rb1+ {[%clk 0:00:18.5]} 34. Ka3 {[%clk 0:00:07.8]} 34... Ra1 {[%clk 0:00:14.8]}
35. Qc3 {[%clk 0:00:05.7]} 35... Rf1 {[%clk 0:00:12]} 36. Qxg7# {[%clk
0:00:05.5]} 1-0